bitfinex/quotes_SOLUSD_20240626
["timestamp","ask_amount","ask_price","bid_price","bid_amount"]
[1719430576245,7.3069,136.86,136.81,0.34]
[1719430576545,7.3061,136.88,136.79,20.34]
[1719430576755,20.0,136.92,136.79,27.6501]
[1719430577049,23.83268162,136.92,136.79,20.34]
[1719430577231,22.01,136.91,136.79,20.34]
[1719430577433,20.0,136.9,136.79,20.34]
[1719430577637,7.3077,136.85,136.79,27.6504]
[1719430578040,7.3078,136.84,136.79,20.34]
[1719430578235,7.3061,136.88,136.82,7.3088]
[1719430578434,20.0,136.9,136.83,7.3082]
[1719430578435,7.3051,136.89,136.83,7.3082]
[1719430578744,7.3058,136.88,136.82,7.3087]
[1719430578952,7.3062,136.87,136.82,7.3087]
[1719430579151,7.3055,136.89,136.81,0.34]
[1719430579355,7.3055,136.89,136.83,7.3083]
[1719430579544,7.3055,136.89,136.84,0.34]
[1719430579850,7.3044,136.91,136.84,20.34]
[1719430580051,7.3035,136.93,136.84,20.34]
[1719430580555,7.3029,136.94,136.86,18.2665]
[1719430580732,7.303,136.93,136.87,27.646]
[1719430581039,7.303,136.93,136.87,35.1944]
[1719430581554,18.2578,136.93,136.83,7.5484]
[1719430581854,20.0,136.92,136.83,7.5484]
[1719430582031,7.3063,136.87,136.83,7.5484]
[1719430582231,20.0,136.92,136.83,14.8567]
[1719430582431,20.0,136.92,136.83,7.5484]
[1719430582843,7.3051,136.89,136.84,7.3077]
[1719430583133,7.3057,136.88,136.83,7.5484]
[1719430583334,22.8627538,136.96,136.85,122.01]
[1719430583335,0.8527538,136.96,136.85,122.01]
[1719430583657,0.8527538,136.96,136.91,7.3036]
[1719430584154,0.8527538,136.96,136.93,7.3028]
[1719430585032,0.8527538,136.96,136.91,7.5484]
[1719430585033,7.302,136.95,136.91,7.5484]
[1719430585338,0.8527538,136.96,136.94,7.3024]
[1719430585537,0.8527538,136.96,136.92,0.17]
[1719430585853,0.8527538,136.96,136.92,7.473]
[1719430586046,0.8527538,136.96,136.91,25.8075]
[1719430586236,0.8527538,136.96,136.92,0.17]
[1719430586437,0.8527538,136.96,136.94,7.3023]
[1719430586744,0.8527538,136.96,136.95,1.62996199]
[1719430586935,0.8527538,136.96,136.93,18.2561]
[1719430587137,0.8527538,136.96,136.92,7.4734]
[1719430587342,0.8527538,136.96,136.93,0.17]
[1719430587955,0.8527538,136.96,136.94,25.5583]
[1719430588328,0.8527538,136.96,136.95,7.4719]
[1719430588533,0.8527538,136.96,136.95,0.17]
[1719430588733,0.8527538,136.96,136.95,7.4719]
[1719430588947,0.8527538,136.96,136.95,0.17]
[1719430589252,0.8527538,136.96,136.95,7.4719]
[1719430589432,0.8527538,136.96,136.95,0.17]
[1719430589628,0.8527538,136.96,136.91,25.808]
[1719430589828,0.8527538,136.96,136.87,7.558]
[1719430590435,7.3031,136.93,136.87,14.8638]
[1719430590636,7.3035,136.92,136.87,7.558]
[1719430590942,7.3041,136.91,136.87,7.558]
[1719430591165,7.3035,136.92,136.87,7.558]
[1719430591459,7.3035,136.92,136.87,14.864]
[1719430592048,19.1074538,136.96,136.87,14.864]
[1719430592355,0.8527538,136.96,136.88,18.2637]
[1719430592539,0.8527538,136.96,136.91,18.2601]
[1719430592855,8.1541538,136.96,136.91,18.2601]
[1719430593053,7.3019,136.95,136.91,18.2601]
[1719430593245,0.8527538,136.96,136.91,25.564]
[1719430593442,8.1546538,136.96,136.91,18.2601]
[1719430593640,0.8527538,136.96,136.88,18.2639]
[1719430593956,8.1542538,136.96,136.91,7.304]
[1719430594151,8.1542538,136.96,136.92,7.3035]
[1719430594152,0.8527538,136.96,136.92,7.3035]
[1719430594866,8.1542538,136.96,136.9,25.5648]
[1719430595233,0.8527538,136.96,136.89,0.34]
[1719430595453,0.8527538,136.96,136.87,25.8231]
[1719430595646,7.3041,136.91,136.87,25.8231]
[1719430595862,7.3025,136.94,136.89,7.3051]
[1719430596089,0.8527538,136.96,136.92,7.303]
[1719430596256,8.1541538,136.96,136.91,25.5629]
[1719430596457,8.1541538,136.96,136.91,18.259]
[1719430596772,0.8527538,136.96,136.92,7.3035]
[1719430596952,8.1541538,136.96,136.92,7.3035]
[1719430597156,0.8527538,136.96,136.92,7.3035]
[1719430597797,0.8527538,136.96,136.87,44.0882]
[1719430597798,0.8527538,136.96,136.93,18.2565]
[1719430597958,0.8527538,136.96,136.95,7.3019]
[1719430598671,0.8527538,136.96,136.95,15.2398]
[1719430598883,0.8527538,136.96,136.95,35.2398]
[1719430599557,0.8527538,136.96,136.95,15.2398]
[1719430599757,0.8527538,136.96,136.95,7.5979]
[1719430599958,0.8527538,136.96,136.95,14.8998]
[1719430600365,0.8527538,136.96,136.95,15.2398]
[1719430600572,0.8527538,136.96,136.95,7.5979]
[1719430600957,0.8527538,136.96,136.95,14.8998]
[1719430601377,0.8527538,136.96,136.94,7.3023]
[1719430601566,0.8527538,136.96,136.93,25.8993]
[1719430601762,0.8527538,136.96,136.94,7.3023]
[1719430602282,0.8527538,136.96,136.93,18.4265]
[1719430602469,0.8527538,136.96,136.93,18.2565]
[1719430602770,0.8527538,136.96,136.93,25.559]
[1719430602972,0.8527538,136.96,136.95,7.3019]
[1719430603562,0.8527538,136.96,136.95,7.4719]
[1719430603789,0.8527538,136.96,136.94,7.3023]
[1719430604093,0.8527538,136.96,136.95,7.3019]
[1719430604292,0.8527538,136.96,136.95,7.6419]
[1719430604887,0.8527538,136.96,136.95,27.6419]
[1719430606070,0.8527538,136.96,136.95,7.6419]
[1719430606964,0.8527538,136.96,136.95,64.1515]
[1719430607570,0.8527538,136.96,136.95,27.6419]
[1719430608479,0.8527538,136.96,136.95,64.1515]
[1719430609060,0.8527538,136.96,136.95,27.6419]
[1719430609474,0.8527538,136.96,136.95,27.4719]
[1719430609861,0.8527538,136.96,136.95,7.4719]
[1719430610983,0.8527538,136.96,136.95,7.6419]
[1719430611796,7.2978,137.03,136.98,7.2999]
[1719430612165,7.2971,137.05,137.01,7.2985]
[1719430612365,13.00912489,137.08,136.99,0.17]
[1719430612566,7.2962,137.06,137.01,25.5445]
[1719430612779,7.2967,137.05,137.02,1.45609932]
[1719430613184,7.2962,137.06,137.02,1.45609932]
[1719430613389,7.2967,137.05,137.02,1.45609932]
[1719430613576,5.3751,137.08,137.02,1.45609932]
[1719430613577,7.2962,137.06,137.02,1.45609932]
[1719430613774,7.2966,137.05,137.02,1.45609932]
[1719430613969,7.2967,137.05,137.02,1.45609932]
[1719430614200,7.2967,137.05,137.01,25.5446]
[1719430614368,7.2967,137.05,137.01,18.246]
[1719430614699,7.2956,137.07,137.01,18.246]
[1719430614998,7.2961,137.06,137.01,25.5445]
[1719430615179,7.2961,137.06,137.02,7.2981]
[1719430615366,7.2957,137.07,137.02,7.2981]
[1719430615565,7.2961,137.06,137.02,7.2981]
[1719430616091,7.2961,137.06,137.01,25.5445]
[1719430616279,7.2967,137.05,137.01,25.5445]
[1719430616686,7.2959,137.07,137.01,25.5445]
[1719430616876,0.8527538,137.09,137.01,25.5445]
[1719430617074,18.2379,137.08,136.98,25.7094]
[1719430617275,18.2379,137.08,136.98,33.0096]
[1719430617492,7.2982,137.02,136.98,33.0096]
[1719430617791,18.2407,137.06,136.97,7.3007]
[1719430617968,7.2978,137.03,136.98,7.3003]
[1719430618385,7.2978,137.03,136.99,7.2997]
[1719430618584,7.2983,137.02,136.98,7.3003]
[1719430618905,18.2407,137.06,136.98,7.3003]
[1719430618906,7.2978,137.03,136.98,7.3002]
[1719430619465,7.2982,137.02,136.97,25.5521]
[1719430619685,7.2982,137.02,136.98,7.3001]
[1719430619686,7.2983,137.02,136.98,7.3001]
[1719430620190,7.2983,137.02,136.97,25.5521]
[1719430620387,7.2989,137.01,136.97,18.2514]
[1719430620579,5.3751,137.05,137.01,92.113725]
[1719430620785,20.0,137.04,137.01,92.113725]
[1719430621796,25.5442,137.02,137.01,92.113725]
[1719430622092,81.785,137.02,137.01,92.113725]
[1719430622270,45.294,137.02,137.01,92.113725]
[1719430622469,7.2982,137.02,137.01,92.113725]
[1719430624078,27.2982,137.02,137.01,71.691525]
[1719430624484,53.2636,137.02,137.01,51.269325]
[1719430624695,53.4336,137.02,137.01,47.483925]
[1719430624901,53.4336,137.02,137.01,18.66582547]
[1719430625072,18.2544,136.96,136.86,19.3429]
[1719430625271,7.302,136.95,136.9,7.3045]
[1719430625583,18.2498,136.99,136.86,19.3429]
[1719430625796,7.3018,136.96,136.91,25.5631]
[1719430626181,7.3021,136.95,136.91,18.2596]
[1719430626386,18.2498,136.99,136.91,18.2596]
[1719430626600,18.2498,136.99,136.91,25.5635]
[1719430626779,18.2498,136.99,136.86,55.8763]
[1719430626780,7.3038,136.92,136.88,18.2633]
[1719430627098,18.2532,136.97,136.88,25.5689]
[1719430627282,46.1354,137.02,136.86,19.3429]
[1719430627283,45.9654,137.02,136.9,18.2609]
[1719430627493,22.01,137.0,136.9,18.2609]
[1719430627678,7.3029,136.94,136.89,7.3046]
[1719430628911,7.3019,136.95,136.9,7.3045]
[1719430629282,18.2513,136.98,136.9,7.3045]
[1719430629283,7.3024,136.94,136.9,7.3045]
[1719430629483,7.302,136.95,136.9,7.3045]
[1719430630496,7.3025,136.94,136.89,25.5671]
[1719430631299,18.2513,136.98,136.89,18.2621]
[1719430631505,25.88471219,137.01,136.91,18.2592]
[1719430631803,43.02093456,137.03,136.87,100.0]
[1719430631804,22.0317,137.02,136.93,18.2567]
[1719430632103,7.3005,136.98,136.93,18.2567]
[1719430632308,3.83268162,137.03,136.95,7.3018]
[1719430632695,3.83268162,137.03,136.94,7.3023]
[1719430633095,7.2998,136.99,136.94,7.3023]
[1719430633292,7.3005,136.98,136.93,25.5595]
[1719430633500,22.07738162,137.03,136.93,18.2567]
[1719430634011,7.2972,137.04,136.99,7.2993]
[1719430634214,7.2972,137.04,136.97,18.2514]
[1719430634215,7.2976,137.03,136.98,7.3002]
[1719430634508,7.2964,137.06,137.01,7.2983]
[1719430634690,7.2966,137.05,137.0,7.2991]
[1719430635092,22.07118162,137.08,136.99,25.8032]
[1719430635610,7.2972,137.04,136.99,25.8032]
[1719430635788,7.2972,137.04,136.99,33.1028]
[1719430636185,7.2977,137.03,136.99,25.8032]
[1719430636390,7.2972,137.04,136.99,33.1029]
[1719430636609,7.2967,137.05,137.0,7.2991]
[1719430636810,7.2961,137.06,137.01,7.2986]
[1719430637791,3.83268162,137.08,136.99,7.5549]
[1719430637988,8.1476538,137.09,137.04,7.297]
[1719430638199,8.1476538,137.09,137.03,18.2434]
[1719430638200,7.2955,137.08,137.03,18.2434]
[1719430638407,0.8527538,137.09,137.03,18.2434]
[1719430638612,8.1475538,137.09,137.04,7.2969]
[1719430639409,8.1475538,137.09,137.06,7.2957]
[1719430639410,0.8527538,137.09,137.06,7.2957]
[1719430639606,0.8527538,137.09,137.05,25.5368]
[1719430639805,0.8527538,137.09,137.06,7.296]
[1719430640010,0.8527538,137.09,137.05,25.5371]
[1719430640208,7.2922,137.14,137.06,9.39326911]
[1719430640408,18.227,137.16,137.06,7.9344]
[1719430640609,18.227,137.16,137.06,15.2303]
[1719430640610,7.2935,137.11,137.06,15.2303]
[1719430640997,18.227,137.16,137.06,15.2303]
[1719430640998,7.2939,137.1,137.06,7.9344]
[1719430641198,18.227,137.16,137.07,18.2387]
[1719430641414,7.2924,137.13,137.07,25.5341]
[1719430641716,25.85115296,137.19,137.09,7.2943]
[1719430641916,20.0,137.18,137.09,7.2943]
[1719430642220,20.0,137.18,137.07,18.2387]
[1719430642524,7.2929,137.12,137.08,1.45721285]
[1719430643018,7.2929,137.12,137.07,25.5337]
[1719430643217,7.2929,137.12,137.08,7.2949]
[1719430643418,18.2265,137.17,137.08,7.2949]
[1719430643922,18.2265,137.17,137.07,25.5341]
[1719430644102,7.293,137.12,137.07,25.5341]
[1719430644298,7.2929,137.12,137.07,18.2387]
[1719430644498,18.2287,137.15,137.06,7.9344]
[1719430644695,18.2287,137.15,137.07,18.7009]
[1719430644900,20.0,137.18,137.09,7.2944]
[1719430645095,20.0,137.18,137.08,25.5316]
[1719430645314,20.0,137.18,137.08,18.2368]
[1719430645517,20.0,137.18,137.1,7.2939]
[1719430645823,7.2924,137.13,137.08,18.2368]
[1719430646007,20.0,137.18,137.08,18.2368]
[1719430646008,7.2918,137.14,137.09,7.2944]
[1719430646719,7.2923,137.13,137.08,25.5317]
[1719430646929,7.62755296,137.19,137.1,18.2341]
[1719430647219,7.62755296,137.19,137.16,25.5169]
[1719430647423,8.1402538,137.23,137.17,7.2898]
[1719430647608,7.2881,137.21,137.16,25.5169]
[1719430647807,0.8527538,137.23,137.16,18.2262]
[1719430648006,7.2885,137.21,137.16,18.2262]
[1719430648207,7.2887,137.2,137.16,18.2262]
[1719430648410,7.2887,137.2,137.15,26.6848]
[1719430648626,0.8527538,137.23,137.18,7.2895]
[1719430648810,0.8527538,137.23,137.2,18.2214]
[1719430649013,7.2897,137.18,137.15,26.6848]
[1719430649210,0.8527538,137.23,137.16,18.7101]
[1719430649425,7.2887,137.2,137.15,7.9839]
[1719430649921,0.8527538,137.23,137.15,7.9839]
[1719430650122,7.2886,137.2,137.15,7.9839]
[1719430650423,7.2907,137.16,137.15,7.9839]
[1719430651025,7.2892,137.19,137.15,7.9839]
[1719430651325,18.2227,137.2,137.12,18.7101]
[1719430651530,7.2906,137.17,137.12,18.7101]
[1719430651709,0.8527538,137.23,137.15,7.2907]
[1719430651930,7.2881,137.21,137.15,7.2907]
[1719430652225,0.8527538,137.23,137.14,25.5195]
[1719430652426,0.3527538,137.23,137.14,18.2283]
[1719430652726,0.3527538,137.23,137.16,18.2255]
[1719430652917,7.2876,137.22,137.17,7.2901]
[1719430653121,7.6398538,137.23,137.17,7.29]
[1719430653305,0.3527538,137.23,137.18,7.3555]
[1719430653507,7.6401538,137.23,137.18,7.3555]
[1719430653825,0.3527538,137.23,137.2,7.2881]
[1719430654011,0.3527538,137.23,137.19,27.6996]
[1719430654206,0.3527538,137.23,137.2,18.2205]
[1719430654409,0.3527538,137.23,137.22,7.2875]
[1719430654807,0.3527538,137.23,137.21,7.2879]
[1719430655206,0.3527538,137.23,137.22,7.2875]
[1719430656229,0.3527538,137.23,137.22,7.4575]
[1719430656425,7.620027,137.32,137.25,7.2855]
[1719430656608,7.2831,137.31,137.26,7.2853]
[1719430656802,7.2833,137.3,137.25,7.2858]
[1719430657015,7.2838,137.29,137.24,25.5017]
[1719430657302,18.2046,137.33,137.23,15.2822]
[1719430657500,20.0,137.32,137.23,15.2822]
[1719430657705,20.0,137.32,137.2,7.8471]
[1719430657909,18.2105,137.29,137.2,15.1356]
[1719430658133,7.286,137.25,137.21,7.288]
[1719430658321,38.2061,137.32,137.22,7.2871]
[1719430658525,18.2091,137.3,137.2,26.0681]
[1719430658830,7.2856,137.26,137.21,7.288]
[1719430659033,7.286,137.25,137.21,7.288]
[1719430659212,7.286,137.25,137.2,26.0681]
[1719430659213,18.2091,137.3,137.2,26.0681]
[1719430659408,7.2855,137.26,137.21,7.4579]
[1719430659614,7.2853,137.27,137.21,7.2879]
[1719430659808,20.0,137.32,137.22,18.3884]
[1719430660023,7.2839,137.29,137.22,18.3884]
[1719430660222,7.2834,137.3,137.24,18.2157]
[1719430660533,7.2834,137.3,137.25,7.2857]
[1719430660922,7.2839,137.29,137.25,7.2857]
[1719430661122,7.2839,137.29,137.24,25.502]
[1719430661852,7.2839,137.29,137.25,7.4558]
[1719430662127,7.2839,137.29,137.25,7.2858]
[1719430662431,18.205,137.33,137.24,25.5021]
[1719430662626,18.2074,137.31,137.21,18.2196]
[1719430662821,7.2849,137.27,137.22,20.0]
[1719430663014,7.2854,137.26,137.22,20.0]
[1719430663209,7.2861,137.25,137.21,25.5076]
[1719430663414,7.2868,137.24,137.2,7.8471]
[1719430664029,7.2871,137.23,137.2,7.8471]
[1719430664227,7.2875,137.22,137.2,7.8471]
[1719430664414,18.2128,137.27,137.2,7.8471]
[1719430664614,7.2866,137.24,137.2,15.1357]
[1719430665038,18.2128,137.27,137.2,15.1357]
[1719430665335,18.2128,137.27,137.2,7.8471]
[1719430666044,18.2156,137.25,137.19,20.0705]
[1719430666414,7.2885,137.21,137.19,20.0705]
[1719430666618,7.2877,137.22,137.19,20.0705]
[1719430666818,7.2882,137.21,137.19,20.0705]
[1719430667221,7.2886,137.2,137.19,20.0705]
[1719430667420,7.2893,137.19,137.17,7.915]
[1719430668050,7.2896,137.18,137.17,7.915]
[1719430668220,7.2907,137.17,137.15,19.613]
[1719430668536,7.2905,137.17,137.15,19.613]
[1719430668715,7.2912,137.16,137.14,8.477]
[1719430669321,7.2908,137.16,137.14,8.477]
[1719430669814,7.2886,137.2,137.15,7.2908]
[1719430670135,7.2897,137.18,137.14,15.7687]
[1719430670436,7.2898,137.18,137.14,8.477]
[1719430670619,12.8889,137.23,137.11,28.038]
[1719430670822,18.2227,137.2,137.11,28.038]
[1719430671023,20.0,137.19,137.11,28.038]
[1719430671336,7.2919,137.14,137.11,28.038]
[1719430671537,7.2911,137.16,137.11,28.038]
[1719430671722,20.0,137.19,137.12,1.40624343]
[1719430672329,36.7787,137.22,137.12,19.63744343]
[1719430672330,50.46,137.22,137.12,19.63744343]
[1719430672534,20.0,137.21,137.12,19.63744343]
[1719430672941,7.2907,137.16,137.12,18.2312]
[1719430673145,38.221,137.21,137.11,28.038]
[1719430673526,7.2906,137.17,137.12,7.2927]
[1719430673940,7.2908,137.16,137.11,35.3313]
[1719430675740,18.2236,137.19,137.09,18.2358]
[1719430675919,7.2916,137.15,137.09,25.5302]
[1719430676317,7.2927,137.13,137.09,18.2358]
[1719430676739,7.2929,137.12,137.08,8.4266]
[1719430677643,33.6562,137.15,137.05,8.2388]
[1719430677941,7.62920972,137.15,137.09,7.2944]
[1719430678247,7.2918,137.14,137.09,7.2944]
[1719430678620,7.2928,137.12,137.07,18.2378]
[1719430678827,7.2924,137.13,137.07,18.2378]
[1719430679028,7.2924,137.13,137.07,25.5331]
[1719430679360,7.2924,137.13,137.08,7.2949]
[1719430679731,7.2931,137.12,137.07,18.2378]
[1719430680131,18.2276,137.16,137.07,18.2378]
[1719430680132,7.2934,137.11,137.07,18.2378]
[1719430680356,18.2276,137.16,137.07,18.2378]
[1719430680656,20.0,137.15,137.07,18.2378]
[1719430680968,18.4,137.14,137.05,8.2388]
[1719430681332,7.2935,137.11,137.06,7.296]
[1719430681526,7.2939,137.1,137.06,7.296]
[1719430681832,7.2928,137.12,137.08,7.2949]
[1719430682040,7.2928,137.12,137.06,18.2396]
[1719430682640,7.2924,137.13,137.06,18.2396]
[1719430682845,7.2915,137.15,137.05,8.2388]
[1719430683038,7.2918,137.14,137.09,25.5302]
[1719430683239,42.5261156,137.19,137.09,25.5302]
[1719430683240,7.2924,137.13,137.09,25.5302]
[1719430683831,7.2924,137.13,137.09,18.2359]
[1719430684031,7.2924,137.13,137.06,0.34]
[1719430684032,7.2929,137.12,137.07,7.2953]
[1719430684846,18.2274,137.16,137.08,18.2369]
[1719430685055,7.62751673,137.18,137.06,36.4785]
[1719430685236,20.0,137.17,137.11,7.2929]
[1719430685431,7.2913,137.15,137.1,25.5274]
[1719430685749,7.2919,137.14,137.1,25.5274]
[1719430685955,7.2919,137.14,137.1,18.2337]
[1719430686759,7.2929,137.12,137.07,25.5341]
[1719430687046,7.2929,137.12,137.08,7.2949]
[1719430687251,7.2929,137.12,137.07,25.5342]
[1719430687252,7.293,137.12,137.07,25.5342]
[1719430687672,18.2287,137.15,137.08,7.2947]
[1719430687855,7.2929,137.12,137.08,7.2947]
[1719430689377,20.0,137.17,137.09,18.235]
[1719430689561,20.0,137.18,137.08,0.17]
[1719430689749,7.2928,137.13,137.08,7.2945]
[1719430689953,7.2919,137.14,137.09,7.294]
[1719430690153,7.2925,137.13,137.09,7.294]
[1719430690363,7.2925,137.13,137.08,25.5315]
[1719430690968,7.293,137.12,137.08,18.2366]
[1719430691265,18.2274,137.16,137.06,7.2959]
[1719430691771,20.0,137.15,137.06,7.2959]
[1719430692273,7.2934,137.11,137.06,7.2959]
[1719430693060,7.2942,137.1,137.05,33.7764]
[1719430693262,7.2945,137.09,137.05,26.48]
[1719430693456,18.233,137.12,137.03,7.2975]
[1719430693666,20.0,137.11,137.03,7.2975]
[1719430693857,20.0,137.11,137.02,25.5432]
[1719430693858,7.2959,137.07,137.02,25.5432]
[1719430694056,7.2961,137.06,137.02,25.5432]
[1719430694457,7.2967,137.05,137.01,8.4004]
[1719430694664,18.2352,137.1,137.01,8.4004]
[1719430694965,18.2352,137.1,137.02,7.2981]
[1719430694966,7.2962,137.06,137.02,7.2981]
[1719430695176,7.2962,137.06,137.01,33.9454]
[1719430695358,7.2956,137.07,137.02,7.2977]
[1719430695682,7.2956,137.07,137.03,7.2975]
[1719430695882,7.2952,137.08,137.03,7.2975]
[1719430696054,7.2957,137.07,137.02,7.298]
[1719430696256,7.2961,137.06,137.01,33.9453]
[1719430696472,7.2956,137.07,137.02,7.298]
[1719430696676,7.2956,137.07,137.03,7.2975]
[1719430697181,18.2388,137.08,137.0,20.177]
[1719430697357,18.2388,137.08,136.98,25.5505]
[1719430697358,7.2981,137.03,136.98,25.5505]
[1719430697961,7.2972,137.04,136.99,7.2997]
[1719430698280,7.2994,137.0,136.97,7.9811]
[1719430698574,7.2999,136.99,136.95,18.2539]
[1719430698760,7.2999,136.99,136.94,7.3024]
[1719430698959,40.1638,137.04,136.94,7.3024]
[1719430699261,20.0,137.03,136.97,7.3005]
[1719430699461,7.2997,137.0,136.96,18.2526]
[1719430699857,20.0,137.03,136.96,18.2526]
[1719430700067,52.0781,137.05,136.97,7.3008]
[1719430700068,7.2987,137.01,136.97,7.3008]
[1719430700263,7.2998,136.99,136.94,7.3019]
[1719430700474,7.3021,136.95,136.9,7.3044]
[1719430700681,7.3021,136.95,136.9,25.5654]
[1719430700875,7.3015,136.96,136.91,7.304]
[1719430701382,18.2479,137.01,136.9,18.261]
[1719430701383,7.3028,136.94,136.9,18.261]
[1719430702387,18.2503,136.99,136.89,36.9114538]
[1719430702388,7.303,136.93,136.89,36.9114538]
[1719430702680,7.303,136.93,136.89,29.6064538]
[1719430703461,18.2503,136.99,136.91,7.3037]
[1719430703680,7.3019,136.95,136.91,7.3037]
[1719430704063,7.3019,136.95,136.89,47.8684538]
[1719430704478,7.3025,136.94,136.89,47.8684538]
[1719430705064,7.303,136.93,136.89,47.8684538]
[1719430705269,40.1703,136.99,136.89,29.6064538]
[1719430705270,18.2527,136.97,136.89,29.6064538]
[1719430705476,20.0,136.96,136.89,29.6064538]
[1719430705873,7.3032,136.93,136.89,0.8527538]
[1719430706381,7.3046,136.9,136.89,0.8527538]
[1719430707164,18.257,136.94,136.89,0.8527538]
[1719430707364,7.3025,136.94,136.9,7.3045]
[1719430708985,7.3046,136.9,136.89,0.8527538]
[1719430709974,7.3041,136.91,136.89,0.8527538]
[1719430710471,18.2567,136.94,136.89,0.8527538]
[1719430710472,7.3046,136.9,136.89,0.8527538]
[1719430711487,47.81615687,136.95,136.89,0.8527538]
[1719430711785,7.304,136.92,136.89,0.8527538]
[1719430711987,12.7907,136.98,136.89,0.8527538]
[1719430712179,20.0,136.97,136.89,8.1576538]
[1719430712378,7.3031,136.93,136.89,0.8527538]
[1719430712580,18.2545,136.96,136.89,0.8527538]
[1719430712886,40.1745,136.96,136.89,0.8527538]
[1719430713065,7.3046,136.9,136.89,0.8527538]
[1719430717680,18.2568,136.94,136.89,0.8527538]
[1719430717881,38.2525,136.97,136.89,8.1577538]
[1719430718081,7.303,136.93,136.89,8.1577538]
[1719430718294,7.303,136.93,136.89,0.8527538]
[1719430718687,7.3024,136.95,136.9,28.4282]
[1719430718878,7.63923827,136.99,136.9,53.9932]
[1719430719198,18.2482,137.0,136.9,46.6891]
[1719430719496,7.3023,136.95,136.9,53.9931]
[1719430719679,7.3025,136.94,136.9,46.6891]
[1719430719879,18.2514,136.98,136.9,46.6891]
[1719430720211,7.3019,136.95,136.9,53.9933]
[1719430721087,7.3019,136.95,136.91,7.3038]
[1719430721396,7.3009,136.97,136.92,25.5615]
[1719430721787,7.3014,136.96,136.92,25.5615]
[1719430722695,7.301,136.97,136.92,25.5615]
[1719430722893,7.301,136.97,136.93,7.3028]
[1719430723091,290.755,137.03,136.94,7.3024]
[1719430723092,12.835,137.03,136.94,7.3024]
[1719430723299,20.0,137.02,136.95,7.3018]
[1719430723516,20.0,137.02,136.94,25.5579]
[1719430723799,7.3001,136.99,136.94,25.5579]
[1719430723975,20.0,137.02,136.94,18.2556]
[1719430723976,7.3004,136.98,136.94,18.2556]
[1719430724382,7.3008,136.97,136.93,7.3029]
[1719430724976,7.3004,136.98,136.93,7.3029]
[1719430726787,7.3004,136.98,136.94,7.3023]
[1719430726990,7.3004,136.98,136.93,25.5599]
[1719430727798,7.3004,136.98,136.94,7.3022]
[1719430728002,7.3004,136.98,136.93,25.5599]
[1719430729109,7.3004,136.98,136.94,7.3024]
[1719430730502,7.3004,136.98,136.93,25.5599]
[1719430730704,18.2461,137.02,136.93,25.5599]
[1719430730909,7.3022,136.95,136.9,46.6889]
[1719430731119,18.2486,137.0,136.9,46.6889]
[1719430731120,7.3015,136.96,136.9,46.6889]
[1719430731302,7.302,136.95,136.91,7.3039]
[1719430731704,7.3015,136.96,136.91,7.3039]
[1719430733795,7.3019,136.95,136.91,7.3039]
[1719430735019,7.3015,136.96,136.92,7.3033]
[1719430735406,27.6368513,137.01,136.92,18.2582]
[1719430735596,7.3004,136.98,136.94,7.302]
[1719430736519,7.3008,136.97,136.93,7.3028]
[1719430737197,7.3005,136.98,136.93,7.3028]
[1719430738512,7.3009,136.97,136.93,7.3028]
[1719430738898,7.3009,136.97,136.92,25.5615]
[1719430739520,18.2496,136.99,136.92,25.5614]
[1719430740314,18.2496,136.99,136.9,35.7324]
[1719430740495,7.3021,136.95,136.9,35.7324]